fUSD/lending_fUSD_20250609
["ID","MTS","AMOUNT","RATE_DAILY","PERIOD"]
[365107375,1749467452038,-480.0,0.00024657,2]
[365107376,1749467452049,-1596.5,0.00024657,2]
[365107377,1749467452058,-480.0,0.00024657,2]
[365107378,1749467452068,-480.0,0.00024657,2]
[365107379,1749467452078,-963.2,0.00024657,2]
[365107380,1749467452087,-751.13,0.00024657,2]
[365107381,1749467452097,-480.0,0.00024657,2]
[365107382,1749467452106,-480.0,0.00024657,2]
[365107383,1749467452116,-480.0,0.00024657,2]
[365107384,1749467452126,-480.0,0.00024657,2]
[365107385,1749467452136,-480.0,0.00024657,2]
[365107386,1749467452146,-701.92,0.00024657,2]
[365107387,1749467452158,-480.0,0.00024657,2]
[365107388,1749467452167,-257.46181614,0.00024657,2]
[365107389,1749467452177,-480.0,0.00024657,2]
[365107390,1749467452187,-480.0,0.00024657,2]
[365107391,1749467452197,-480.0,0.00024657,2]
[365107392,1749467452206,-571.45,0.00024657,2]
[365107393,1749467452216,-480.0,0.00024657,2]
[365107394,1749467452226,-985.49,0.00024657,2]
[365107395,1749467452238,-848.03,0.00024657,2]
[365107396,1749467452247,-812.41,0.00024657,2]
[365107397,1749467452258,-480.0,0.00024657,2]
[365107398,1749467452267,-480.0,0.00024657,2]
[365107399,1749467452277,-480.0,0.00024657,2]
[365107400,1749467452287,-480.0,0.00024657,2]
[365107401,1749467452296,-480.0,0.00024657,2]
[365107402,1749467452305,-694.25,0.00024657,2]
[365107403,1749467452315,-607.16,0.00024657,2]
[365107404,1749467452325,-1593.32,0.00024657,2]
[365107405,1749467452335,-480.0,0.00024657,2]
[365107406,1749467452345,-480.0,0.00024657,2]
[365107407,1749467452355,-929.53,0.00024657,2]
[365107408,1749467452365,-480.0,0.00024657,2]
[365107409,1749467452375,-480.0,0.00024657,2]
[365107410,1749467452385,-480.0,0.00024657,2]
[365107411,1749467452395,-480.0,0.00024657,2]
[365107412,1749467452404,-480.0,0.00024657,2]
[365107413,1749467452413,-480.0,0.00024657,2]
[365107414,1749467452423,-199.46824629,0.00024657,2]
[365107415,1749467452434,-480.0,0.00024657,2]
[365107416,1749467452444,-778.0,0.00024657,2]
[365107417,1749467452456,-775.36,0.00024657,2]
[365107418,1749467452466,-480.0,0.00024657,2]
[365107419,1749467452475,-480.0,0.00024657,2]
[365107420,1749467452483,-480.0,0.00024657,2]
[365107421,1749467452492,-539.80471147,0.00024657,2]
[365107422,1749467452500,-480.0,0.00024657,2]
[365107423,1749467452510,-525.31,0.00024657,2]
[365107424,1749467452519,-914.16,0.00024657,2]
[365107425,1749467452529,-480.0,0.00024657,2]
[365107426,1749467452540,-398.12019711,0.00024657,2]
[365107427,1749467452549,-471.01540258,0.00024657,2]
[365107428,1749467452559,-665.27,0.00024657,2]
[365107429,1749467452569,-480.0,0.00024657,2]
[365107430,1749467452579,-746.05,0.00024657,2]
[365107431,1749467452588,-820.23,0.00024657,2]
[365107432,1749467452599,-2259.36,0.00024657,2]
[365107433,1749467452609,-480.0,0.00024657,2]
[365107434,1749467452619,-1295.49,0.00024657,2]
[365107435,1749467452630,-480.0,0.00024657,2]
[365107436,1749467452640,-480.0,0.00024657,2]
[365107437,1749467452650,-1732.0,0.00024657,2]
[365107438,1749467452661,-480.0,0.00024657,2]
[365107439,1749467452671,-990.87,0.00024657,2]
[365107440,1749467452680,-1848.92,0.00024657,2]
[365107441,1749467452690,-343.26,0.00024657,2]
[365107442,1749467452700,-586.59,0.00024657,2]
[365107443,1749467452709,-1356.93,0.00024657,2]
[365107444,1749467452721,-1000.0,0.00024657,2]
[365107445,1749467452731,-3717.07,0.00024657,2]
[365107446,1749467452741,-480.0,0.00024657,2]
[365107447,1749467452751,-772.28,0.00024657,2]
[365107448,1749467452762,-169.15025998,0.00024657,2]
[365107449,1749467452773,-480.0,0.00024657,2]
[365107450,1749467452783,-480.0,0.00024657,2]
[365107451,1749467452792,-480.0,0.00024657,2]
[365107452,1749467452802,-480.0,0.00024657,2]
[365107453,1749467452811,-802.39,0.00024657,2]
[365107454,1749467452821,-475.44638242,0.00024657,2]
[365107455,1749467452830,-583.65,0.00024657,2]
[365107456,1749467452840,-480.0,0.00024657,2]
[365107457,1749467452850,-575.9,0.00024657,2]
[365107458,1749467452859,-480.0,0.00024657,2]
[365107459,1749467452869,-570.51,0.00024657,2]
[365107460,1749467452879,-3228.84,0.00024657,2]
[365107461,1749467452889,-480.0,0.00024657,2]
[365107462,1749467452899,-784.8,0.00024657,2]
[365107463,1749467452909,-547.07,0.00024657,2]
[365107464,1749467452919,-763.27,0.00024657,2]
[365107465,1749467452929,-480.0,0.00024657,2]
[365107466,1749467452939,-480.0,0.00024657,2]
[365107467,1749467452949,-480.0,0.00024657,2]
[365107468,1749467452959,-1534.26,0.00024657,2]
[365107469,1749467452968,-773.54,0.00024657,2]
[365107470,1749467452978,-480.0,0.00024657,2]
[365107471,1749467452988,-502.44,0.00024657,2]
[365107472,1749467452998,-1170.03,0.00024657,2]
[365107473,1749467453009,-480.0,0.00024657,2]
[365107474,1749467453019,-480.0,0.00024657,2]
[365107475,1749467453028,-3012.44,0.00024657,2]
[365107476,1749467453038,-480.0,0.00024657,2]
[365107477,1749467453047,-480.0,0.00024657,2]
[365107478,1749467453057,-512.4,0.00024657,2]
[365107479,1749467453067,-480.0,0.00024657,2]
[365107480,1749467453076,-480.0,0.00024657,2]
[365107481,1749467453085,-1442.87,0.00024657,2]
[365107482,1749467453095,-1519.91,0.00024657,2]
[365107483,1749467453105,-480.0,0.00024657,2]
[365107484,1749467453115,-480.0,0.00024657,2]
[365107485,1749467453124,-891.08,0.00024657,2]
[365107486,1749467453134,-480.0,0.00024657,2]
[365107487,1749467453143,-506.93465456,0.00024657,2]
[365107488,1749467453153,-480.0,0.00024657,2]
[365107489,1749467453166,-480.0,0.00024657,2]
[365107490,1749467453176,-499.44479943,0.00024657,2]
[365107491,1749467453186,-1678.45,0.00024657,2]
[365107492,1749467453196,-1398.24,0.00024657,2]
[365107493,1749467453207,-1165.26,0.00024657,2]
[365107494,1749467453218,-480.0,0.00024657,2]
[365107495,1749467453227,-2319.82,0.00024657,2]
[365107496,1749467453238,-2517.22,0.00024657,2]
[365107497,1749467453247,-862.85,0.00024657,2]
[365107498,1749467453257,-22947.35,0.00024657,2]
[365107499,1749467453266,-480.0,0.00024657,2]
[365107500,1749467453276,-1731.91,0.00024657,2]
[365107501,1749467453285,-534.36,0.00024657,2]
[365107502,1749467453295,-506.07,0.00024657,2]
[365107503,1749467453305,-945.9,0.00024657,2]
[365107504,1749467453314,-3651.45,0.00024657,2]
[365107505,1749467453323,-480.0,0.00024657,2]
[365107506,1749467453333,-1014.19,0.00024657,2]
[365107507,1749467453343,-410.37318311,0.00024657,2]
[365107508,1749467453352,-480.0,0.00024657,2]
[365107509,1749467453362,-1143.4,0.00024657,2]
[365107510,1749467453372,-3119.95,0.00024657,2]
[365107511,1749467453381,-480.0,0.00024657,2]
[365107512,1749467453391,-1000.0,0.00024657,2]
[365107513,1749467453400,-1139.15,0.00024657,2]
[365107514,1749467453411,-554.28,0.00024657,2]
[365107515,1749467453421,-1822.46,0.00024657,2]
[365107516,1749467453431,-797.93,0.00024657,2]
[365107517,1749467453440,-1412.46,0.00024657,2]
[365107518,1749467453450,-480.0,0.00024657,2]
[365107519,1749467453460,-1207.75,0.00024657,2]
[365107520,1749467453469,-809.74,0.00024657,2]
[365107521,1749467453479,-794.47,0.00024657,2]
[365107522,1749467453488,-437.59830839,0.00024657,2]
[365107523,1749467453498,-755.36,0.00024657,2]
[365107524,1749467453507,-4431.71,0.00024657,2]
[365107525,1749467453516,-2400.49,0.00024657,2]
[365107526,1749467453525,-1225.84,0.00024657,2]
[365107527,1749467453535,-480.0,0.00024657,2]
[365107528,1749467453545,-480.0,0.00024657,2]
[365107529,1749467453555,-2389.33,0.00024657,2]
[365107530,1749467453565,-480.0,0.00024657,2]
[365107531,1749467453574,-2500.85,0.00024657,2]
[365107532,1749467453584,-480.0,0.00024657,2]
[365107533,1749467453593,-8933.26,0.00024657,2]
[365107534,1749467453603,-480.0,0.00024657,2]
[365107535,1749467453613,-480.0,0.00024657,2]
[365107536,1749467453623,-480.0,0.00024657,2]
[365107537,1749467453633,-1040.21,0.00024657,2]
[365107538,1749467453642,-1072.67,0.00024657,2]
[365107539,1749467453652,-480.0,0.00024657,2]
[365107540,1749467453662,-480.0,0.00024657,2]
[365107541,1749467453671,-673.54,0.00024657,2]
[365107542,1749467453681,-520.82,0.00024657,2]
[365107543,1749467453690,-480.0,0.00024657,2]
[365107544,1749467453699,-850.95,0.00024657,2]
[365107545,1749467453709,-480.0,0.00024657,2]
[365107546,1749467453718,-480.0,0.00024657,2]
[365107547,1749467453727,-480.0,0.00024657,2]
[365107548,1749467453737,-1107.88,0.00024657,2]
[365107549,1749467453746,-6752.31,0.00024657,2]
[365107550,1749467453757,-480.0,0.00024657,2]
[365107551,1749467453766,-480.0,0.00024657,2]
[365107552,1749467453776,-569.97071989,0.00024657,2]
[365107553,1749467453786,-607.72,0.00024657,2]
[365107554,1749467453796,-812.64,0.00024657,2]
[365107555,1749467453805,-3490.21,0.00024657,2]
[365107556,1749467453815,-480.0,0.00024657,2]
[365107557,1749467453824,-480.0,0.00024657,2]
[365107558,1749467453833,-480.0,0.00024657,2]
[365107559,1749467453843,-917.72,0.00024657,2]
[365107560,1749467453852,-2566.68,0.00024657,2]
[365107561,1749467453861,-2566.68,0.00024657,2]
[365107562,1749467453872,-1030.26,0.00024657,2]
[365107563,1749467453882,-480.0,0.00024657,2]
[365107564,1749467453891,-480.0,0.00024657,2]
[365107565,1749467453901,-1336.25,0.00024657,2]
[365107566,1749467453911,-1450.58,0.00024657,2]
[365107567,1749467453920,-519.85,0.00024657,2]
[365107568,1749467453930,-900.38,0.00024657,2]
[365107569,1749467453939,-1051.44,0.00024657,2]
[365107570,1749467453948,-1227.58,0.00024657,2]
[365107571,1749467453958,-3715.28,0.00024657,2]
[365107572,1749467453967,-480.0,0.00024657,2]
[365107573,1749467453977,-875.29,0.00024657,2]
[365107574,1749467453986,-1383.42,0.00024657,2]
[365107575,1749467453995,-480.0,0.00024657,2]
[365107576,1749467454005,-674.7,0.00024657,2]
[365107577,1749467454014,-3019.42,0.00024657,2]
[365107578,1749467454023,-480.0,0.00024657,2]
[365107579,1749467454032,-483.78442438,0.00024657,2]
[365107580,1749467454042,-767.5,0.00024657,2]
[365107581,1749467454051,-2987.01,0.00024657,2]
[365107582,1749467454061,-872.18,0.00024657,2]
[365107583,1749467454071,-1344.66,0.00024657,2]
[365107584,1749467454081,-606.82,0.00024657,2]
[365107585,1749467454091,-1574.26,0.00024657,2]
[365107586,1749467454100,-607.38,0.00024657,2]
[365107587,1749467454109,-480.0,0.00024657,2]
[365107588,1749467454120,-314.19033185,0.00024657,2]
[365107589,1749467454130,-735.84,0.00024657,2]
[365107590,1749467454139,-1442.46,0.00024657,2]
[365107591,1749467454149,-809.97,0.00024657,2]
[365107592,1749467454161,-618.8,0.00024657,2]
[365107593,1749467454171,-1263.55,0.00024657,2]
[365107594,1749467454181,-1058.49,0.00024657,2]
[365107595,1749467454191,-480.0,0.00024657,2]
[365107596,1749467454202,-480.0,0.00024657,2]
[365107597,1749467454212,-480.0,0.00024657,2]
[365107598,1749467454222,-530.38,0.00024657,2]
[365107599,1749467454232,-1223.63,0.00024657,2]
[365107600,1749467454242,-605.91465972,0.00024657,2]
[365107601,1749467454252,-480.0,0.00024657,2]
[365107602,1749467454262,-1146.91,0.00024657,2]
[365107603,1749467454271,-1285.75,0.00024657,2]
[365107604,1749467454281,-480.0,0.00024657,2]
[365107605,1749467454291,-942.47,0.00024657,2]
[365107606,1749467454301,-1980.86,0.00024657,2]
[365107607,1749467454311,-485.07,0.00024657,2]
[365107608,1749467454322,-1095.79,0.00024657,2]
[365107609,1749467454332,-497.05,0.00024657,2]
[365107610,1749467454342,-1708.15,0.00024657,2]
[365107611,1749467454352,-480.0,0.00024657,2]
[365107612,1749467454362,-807.4,0.00024657,2]
[365107613,1749467454375,-461.6745686,0.00024657,2]
[365107614,1749467454384,-480.0,0.00024657,2]
[365107615,1749467454394,-1444.88,0.00024657,2]
[365107616,1749467454466,-1313.01,0.00024657,2]
[365107617,1749467454476,-1682.67,0.00024657,2]
[365107618,1749467454485,-480.0,0.00024657,2]
[365107619,1749467454493,-480.0,0.00024657,2]
[365107620,1749467454501,-2278.58,0.00024657,2]
[365107621,1749467454510,-480.0,0.00024657,2]
[365107622,1749467454518,-1818.04,0.00024657,2]
[365107623,1749467454527,-480.0,0.00024657,2]
[365107624,1749467454535,-480.0,0.00024657,2]
[365107625,1749467454543,-536.59,0.00024657,2]
[365107626,1749467454551,-975.65,0.00024657,2]
[365107627,1749467454559,-480.0,0.00024657,2]
[365107628,1749467454568,-731.9,0.00024657,2]
[365107629,1749467454578,-510.45,0.00024657,2]
[365107630,1749467454586,-480.0,0.00024657,2]
[365107631,1749467454594,-705.59,0.00024657,2]
[365107632,1749467454602,-1698.66,0.00024657,2]
[365107633,1749467454611,-480.0,0.00024657,2]
[365107634,1749467454621,-657.35,0.00024657,2]
[365107635,1749467454630,-887.04,0.00024657,2]
[365107636,1749467454640,-507.54,0.00024657,2]
[365107637,1749467454649,-574.68,0.00024657,2]
[365107638,1749467454659,-490.81,0.00024657,2]
[365107639,1749467454667,-646.2,0.00024657,2]
[365107640,1749467454677,-480.0,0.00024657,2]
[365107641,1749467454686,-458.93761496,0.00024657,2]
[365107642,1749467454695,-2133.36,0.00024657,2]
[365107643,1749467454704,-480.0,0.00024657,2]
[365107644,1749467454714,-3929.33,0.00024657,2]
[365107645,1749467454723,-1202.3,0.00024657,2]
[365107646,1749467454732,-823.05,0.00024657,2]
[365107647,1749467454742,-1235.84,0.00024657,2]
[365107648,1749467454751,-467.64773492,0.00024657,2]
[365107649,1749467454760,-573.71,0.00024657,2]
[365107650,1749467454769,-480.0,0.00024657,2]
[365107651,1749467454779,-1357.69,0.00024657,2]
[365107652,1749467454788,-2452.83,0.00024657,2]
[365107653,1749467454797,-1822.6,0.00024657,2]
[365107654,1749467454806,-1908.91,0.00024657,2]
[365107655,1749467454816,-683.03,0.00024657,2]
[365107656,1749467454825,-480.0,0.00024657,2]
[365107657,1749467454834,-897.53,0.00024657,2]
[365107658,1749467454843,-480.0,0.00024657,2]
[365107659,1749467454852,-1705.95,0.00024657,2]
[365107660,1749467454862,-480.0,0.00024657,2]
[365107661,1749467454872,-558.25,0.00024657,2]
[365107662,1749467454881,-480.0,0.00024657,2]
[365107663,1749467454891,-774.8,0.00024657,2]
[365107664,1749467454900,-767.98,0.00024657,2]
[365107665,1749467454909,-461.5921025,0.00024657,2]
[365107666,1749467454918,-480.0,0.00024657,2]
[365107667,1749467454927,-2089.01,0.00024657,2]
[365107668,1749467454936,-1397.47,0.00024657,2]
[365107669,1749467454945,-931.16,0.00024657,2]
[365107670,1749467454955,-480.0,0.00024657,2]
[365107671,1749467454964,-1599.14,0.00024657,2]
[365107672,1749467454973,-761.61,0.00024657,2]
[365107673,1749467454983,-633.28,0.00024657,2]
[365107674,1749467454992,-644.0,0.00024657,2]
[365107675,1749467455002,-877.16,0.00024657,2]
[365107676,1749467455011,-480.0,0.00024657,2]
[365107677,1749467455021,-774.21,0.00024657,2]
[365107678,1749467455030,-1493.93,0.00024657,2]
[365107679,1749467455040,-554.92,0.00024657,2]
[365107680,1749467455049,-528.04,0.00024657,2]
[365107681,1749467455059,-480.0,0.00024657,2]
[365107682,1749467455069,-654.96,0.00024657,2]
[365107683,1749467455078,-1337.67,0.00024657,2]
[365107684,1749467455087,-480.0,0.00024657,2]
[365107685,1749467455096,-1222.29,0.00024657,2]
[365107686,1749467455106,-480.0,0.00024657,2]
[365107687,1749467455115,-480.0,0.00024657,2]
[365107688,1749467455124,-1409.83,0.00024657,2]
[365107689,1749467455132,-701.79,0.00024657,2]
[365107690,1749467455139,-559.11,0.00024657,2]
[365107691,1749467455146,-717.62,0.00024657,2]
[365107692,1749467455155,-957.18,0.00024657,2]
[365107693,1749467455167,-922.55,0.00024657,2]
[365107694,1749467455176,-480.0,0.00024657,2]
[365107695,1749467455184,-759.00615293,0.00024658,2]
[365107696,1749467455194,-1000.0,0.00024658,2]
[365107697,1749467455203,-1275.0,0.00024658,120]
[365107698,1749467455212,-500.0,0.00024673,2]
[365107699,1749467455221,-1000.0,0.00024778,2]
[365107700,1749467455231,-1000.0,0.00024778,2]
[365107701,1749467455244,-1000.0,0.00024778,2]
[365107702,1749467455254,-1000.0,0.00024778,2]
[365107703,1749467455264,-500.0,0.00024799,2]
[365107704,1749467455273,-521.60350754,0.00024799,2]
[365107705,1749467455282,-351.61,0.00024799,2]
[365107706,1749467455292,-500.0,0.00024799,2]
[365107707,1749467455301,-833.29909032,0.000248,3]
[365107708,1749467455311,-833.29909032,0.000248,3]
[365107709,1749467455319,-833.29909032,0.000248,3]
[365107710,1749467455326,-619424.944343,0.000248,3]
[365107711,1749467455335,-833.29909032,0.000248,3]
[365107712,1749467455343,-5804.85401955,0.00024825,2]
[365107713,1749467455352,-948.39,0.00024887,2]
[365107714,1749467455361,-500.0,0.00024899,2]
[365107715,1749467455371,-113147.270386,0.000249,3]
[365107716,1749467455380,-213.37586264,0.000249,12]
[365107717,1749467455390,-1000.0,0.00024915,2]
[365107718,1749467455399,-1000.0,0.00024915,2]
[365107719,1749467455408,-1000.0,0.00024915,2]
[365107720,1749467455417,-1000.0,0.00024915,2]
[365107721,1749467455427,-1000.0,0.00025052,2]
[365107722,1749467455436,-1000.0,0.00025052,2]
[365107723,1749467455446,-1000.0,0.00025052,2]
[365107724,1749467455455,-1000.0,0.00025052,2]
[365107725,1749467455464,-200.0,0.000251,7]
[365107726,1749467455474,-1000.0,0.00025464,2]
[365107727,1749467455483,-1600.0,0.00025781,120]
[365107728,1749467455492,-1036.70095268,0.00025864,2]
[365107729,1749467455501,-2000.0,0.00026,2]
[365107730,1749467455510,-1109.89,0.00026074,2]
[365107731,1749467455519,-1333.0,0.00026137,120]
[365107732,1749467455528,-351.61,0.00026169,2]
[365107733,1749467455537,-500.0,0.00026282,120]
[365107734,1749467455546,-2000.0,0.00026313,60]
[365107735,1749467455555,-5804.85401955,0.00026504,2]
[365107736,1749467455564,-333.0,0.00026676,2]
[365107737,1749467455573,-532.37269024,0.00026694,2]
[365107738,1749467455582,-500.0,0.00026808,2]
[365107739,1749467455592,-252.94647335,0.00026946,2]
[365107740,1749467455601,-800.0,0.00026986,120]
[365107741,1749467455611,-800.0,0.00026986,120]
[365107742,1749467455622,-154.769397,0.00027,2]
[365107743,1749467455631,-708.19,0.000271,31]
[365107744,1749467455640,-708.19,0.000271,31]
[365107745,1749467455649,-708.19,0.000271,31]
[365107746,1749467455658,-708.19,0.000271,31]
[365107747,1749467455667,-708.19,0.000271,31]
[365107748,1749467455677,-708.19,0.000271,31]
[365107749,1749467455686,-708.19,0.000271,31]
[365107750,1749467455694,-708.19,0.000271,31]
[365107751,1749467455703,-708.19,0.000271,31]
[365107752,1749467455712,-708.19,0.000271,31]
[365107753,1749467455721,-708.19,0.000271,31]
[365107754,1749467455730,-708.19,0.000271,31]
[365107755,1749467455740,-708.19,0.000271,31]
[365107756,1749467455749,-708.19,0.000271,31]
[365107757,1749467455759,-708.19,0.000271,31]
[365107758,1749467455768,-708.19,0.000271,31]
[365107759,1749467455777,-708.19,0.000271,31]
[365107760,1749467455787,-708.19,0.000271,31]
[365107761,1749467455796,-708.19,0.000271,31]
[365107762,1749467455805,-708.19,0.000271,31]
[365107763,1749467455814,-708.19,0.000271,31]
[365107764,1749467455823,-708.19,0.000271,31]
[365107765,1749467455832,-708.19,0.000271,31]
[365107766,1749467455841,-708.19,0.000271,31]
[365107767,1749467455850,-153.0,0.00027123,2]
[365107768,1749467455859,-153.0,0.00027123,2]
[365107769,1749467455868,-153.0,0.00027123,2]
[365107770,1749467455877,-153.0,0.00027123,2]
[365107771,1749467455886,-948.39,0.00027151,2]
[365107772,1749467455895,-1036.70095268,0.00027213,2]
[365107773,1749467455904,-633.1484838,0.00027386,2]
[365107774,1749467455913,-833.29909032,0.0002739,3]
[365107775,1749467455923,-480.0,0.00027397,2]
[365107776,1749467455932,-443.60765497,0.00027397,2]
[365107777,1749467455941,-380.0,0.00027397,2]
[365107778,1749467455951,-344.7976215,0.00027397,2]
[365107779,1749467455960,-480.0,0.00027397,2]
[365107780,1749467455969,-480.0,0.00027397,2]
[365107781,1749467455979,-480.0,0.00027397,2]
[365107782,1749467455989,-480.0,0.00027397,2]
[365107783,1749467455998,-758.31,0.00027397,2]
[365107784,1749467456007,-480.0,0.00027397,2]
[365107785,1749467456017,-593.76,0.00027397,2]
[365107786,1749467456027,-480.0,0.00027397,2]
[365107787,1749467456036,-480.0,0.00027397,2]
[365107788,1749467456046,-527.06,0.00027397,2]
[365107789,1749467456055,-480.0,0.00027397,2]
[365107790,1749467456064,-752.26,0.00027397,2]
[365107791,1749467456073,-480.0,0.00027397,2]
[365107792,1749467456082,-467.87319156,0.00027397,2]
[365107793,1749467456091,-480.0,0.00027397,2]
[365107794,1749467456100,-480.0,0.00027397,2]
[365107795,1749467456110,-480.0,0.00027397,2]
[365107796,1749467456119,-480.0,0.00027397,2]
[365107797,1749467456128,-570.48,0.00027397,2]
[365107798,1749467456137,-500.0,0.00027397,2]
[365107799,1749467456146,-480.0,0.00027397,2]
[365107800,1749467456156,-166.55048237,0.00027397,2]
[365107801,1749467456169,-480.0,0.00027397,2]
[365107802,1749467456178,-480.0,0.00027397,2]
[365107803,1749467456187,-480.0,0.00027397,2]
[365107804,1749467456197,-480.0,0.00027397,2]
[365107805,1749467456206,-480.0,0.00027397,2]
[365107806,1749467456215,-480.0,0.00027397,2]
[365107807,1749467456224,-480.0,0.00027397,2]
[365107808,1749467456236,-480.0,0.00027397,2]
[365107809,1749467456245,-795.43,0.00027397,2]
[365107810,1749467456254,-579.59,0.00027397,2]
[365107811,1749467456264,-209.34011487,0.00027397,2]
[365107812,1749467456274,-1024.32,0.00027397,2]
[365107813,1749467456283,-480.0,0.00027397,2]
[365107814,1749467456295,-480.0,0.00027397,2]
[365107815,1749467456307,-798.33,0.00027397,2]
[365107816,1749467456317,-480.0,0.00027397,2]
[365107817,1749467456328,-1145.79,0.00027397,2]
[365107818,1749467456337,-613.4,0.00027397,2]
[365107819,1749467456347,-480.0,0.00027397,2]
[365107820,1749467456358,-621.53,0.00027397,2]
[365107821,1749467456368,-480.0,0.00027397,2]
[365107822,1749467456378,-480.0,0.00027397,2]
[365107823,1749467456388,-480.0,0.00027397,2]
[365107824,1749467456397,-480.0,0.00027397,2]
[365107825,1749467456407,-480.0,0.00027397,2]
[365107826,1749467456416,-1390.49,0.00027397,2]
[365107827,1749467456426,-666.6,0.00027397,2]
[365107828,1749467456435,-480.0,0.00027397,2]
[365107829,1749467456444,-480.0,0.00027397,2]
[365107830,1749467456454,-480.0,0.00027397,2]
[365107831,1749467456463,-590.55,0.00027397,2]
[365107832,1749467456472,-480.0,0.00027397,2]
[365107833,1749467456482,-483.01,0.00027397,2]
[365107834,1749467456491,-480.0,0.00027397,2]
[365107835,1749467456501,-1003.98,0.00027397,2]
[365107836,1749467456514,-480.0,0.00027397,2]
[365107837,1749467456523,-480.0,0.00027397,2]
[365107838,1749467456532,-480.0,0.00027397,2]
[365107839,1749467456541,-480.0,0.00027397,2]
[365107840,1749467456551,-480.0,0.00027397,2]
[365107841,1749467456560,-479.20329214,0.00027397,2]
[365107842,1749467456570,-464.15702106,0.00027397,2]
[365107843,1749467456579,-480.0,0.00027397,2]
[365107844,1749467456589,-1548.57,0.00027397,2]
[365107845,1749467456598,-480.0,0.00027397,2]
[365107846,1749467456607,-1152.84,0.00027397,2]
[365107847,1749467456617,-480.0,0.00027397,2]
[365107848,1749467456628,-480.0,0.00027397,2]
[365107849,1749467456638,-480.0,0.00027397,2]
[365107850,1749467456648,-868.27,0.00027397,2]
[365107851,1749467456657,-480.0,0.00027397,2]
[365107852,1749467456667,-250.0,0.00027397,2]
[365107853,1749467456676,-658.72,0.00027397,2]
[365107854,1749467456686,-712.4,0.00027397,2]
[365107855,1749467456695,-480.0,0.00027397,2]
[365107856,1749467456704,-424.0995654,0.00027397,2]
[365107857,1749467456714,-1162.05,0.00027397,2]
[365107858,1749467456723,-480.0,0.00027397,2]
[365107859,1749467456732,-681.29,0.00027397,2]
[365107860,1749467456741,-681.29,0.00027397,2]
[365107861,1749467456751,-681.29,0.00027397,2]
[365107862,1749467456760,-480.0,0.00027397,2]
[365107863,1749467456771,-451.63024177,0.00027397,2]
[365107864,1749467456780,-480.0,0.00027397,2]
[365107865,1749467456789,-480.0,0.00027397,2]
[365107866,1749467456798,-480.0,0.00027397,2]
[365107867,1749467456807,-480.0,0.00027397,2]
[365107868,1749467456816,-480.0,0.00027397,2]
[365107869,1749467456825,-480.0,0.00027397,2]
[365107870,1749467456834,-1413.78,0.00027397,2]
[365107871,1749467456844,-480.0,0.00027397,2]
[365107872,1749467456853,-767.19,0.00027397,2]
[365107873,1749467456862,-1260.16,0.00027397,2]
[365107874,1749467456873,-480.0,0.00027397,2]